Workbook

Sheet Worksheet
C1: Do these calculations involving fractions, giving your answer in its simplest form.
A2: Variables | C2: 1 | D2: 3 | E2: 3 | F2: × | G2: 2 | H2: 1 | I2: = | J2: 0.12 | K2: 3/25 | L2: 6 | M2: 2 | N2: 2 | O2: – | P2: 1 | Q2: 1 | R2: = | S2: 0.2333333333 | T2: 7/30 | U2: 11 | V2: 5 | W2: 5 | X2: ÷ | Y2: 8 | Z2: 4 | AA2: = | AB2: 0.8928571429 | AC2: 25/28 | AD2: 16 | AE2: 1 | AF2: 1 | AG2: × | AH2: 2 | AI2: 2 | AJ2: = | AK2: 0.03174603175 | AL2: 2/63
A3: SHOW ANSWERS | B3: FALSE | D3: 5 | E3: 5 | G3: 10 | H3: 5 | M3: 5 | N3: 5 | P3: 6 | Q3: 6 | V3: 7 | W3: 7 | Y3: 10 | Z3: 5 | AE3: 9 | AF3: 9 | AH3: 7 | AI3: 7
A4: Size of fractions | D4: 1 | G4: 2 | M4: 1 | P4: 1 | V4: 1 | Y4: 2 | AE4: 1 | AH4: 1
A5: Maximum denominator | B5: 10 | C5: 2 | D5: 3 | E5: 3 | F5: ÷ | G5: 3 | H5: 1 | I5: = | J5: 0.6 | K5: 3/5 | L5: 7 | M5: 2 | N5: 1 | O5: + | P5: 2 | Q5: 2 | R5: = | S5: 0.4857142857 | T5: 17/35 | U5: 12 | V5: 7 | W5: 7 | X5: ÷ | Y5: 2 | Z5: 2 | AA5: = | AB5: 2.45 | AC5: 49/20 | AD5: 17 | AE5: 1 | AF5: 1 | AG5: – | AH5: 1 | AI5: 1 | AJ5: = | AK5: 0.08888888889 | AL5: 4/45
D6: 10 | E6: 10 | G6: 6 | H6: 2 | M6: 10 | N6: 5 | P6: 7 | Q6: 7 | V6: 10 | W6: 10 | Y6: 7 | Z6: 7 | AE6: 5 | AF6: 5 | AH6: 9 | AI6: 9
D7: 1 | G7: 3 | M7: 2 | P7: 1 | V7: 1 | Y7: 1 | AE7: 1 | AH7: 1
C8: 3 | D8: 2 | E8: 1 | F8: ÷ | G8: 4 | H8: 4 | I8: = | J8: 0.45 | K8: 9/20 | L8: 8 | M8: 3 | N8: 1 | O8: ÷ | P8: 9 | Q8: 9 | R8: = | S8: 0.5555555556 | T8: 5/9 | U8: 13 | V8: 1 | W8: 1 | X8: ÷ | Y8: 7 | Z8: 7 | AA8: = | AB8: 0.3571428571 | AC8: 5/14 | AD8: 18 | AE8: 4 | AF8: 2 | AG8: + | AH8: 7 | AI8: 7 | AJ8: = | AK8: 1.541666667 | AL8: 37/24
D9: 10 | E9: 5 | G9: 9 | H9: 9 | M9: 6 | N9: 2 | P9: 10 | Q9: 10 | V9: 4 | W9: 4 | Y9: 10 | Z9: 10 | AE9: 6 | AF9: 3 | AH9: 8 | AI9: 8
D10: 2 | G10: 1 | M10: 3 | P10: 1 | V10: 1 | Y10: 1 | AE10: 2 | AH10: 1
C11: 4 | D11: 1 | E11: 1 | F11: ÷ | G11: 2 | H11: 2 | I11: = | J11: 1.166666667 | K11: 7/6 | L11: 9 | M11: 6 | N11: 2 | O11: ÷ | P11: 2 | Q11: 1 | R11: = | S11: 3.333333333 | T11: 10/3 | U11: 14 | V11: 1 | W11: 1 | X11: ÷ | Y11: 1 | Z11: 1 | AA11: = | AB11: 0.3333333333 | AC11: 1/3 | AD11: 19 | AE11: 2 | AF11: 2 | AG11: ÷ | AH11: 5 | AI11: 5 | AJ11: = | AK11: 0.3428571429 | AL11: 12/35
D12: 3 | E12: 3 | G12: 7 | H12: 7 | M12: 9 | N12: 3 | P12: 10 | Q12: 5 | V12: 9 | W12: 9 | Y12: 3 | Z12: 3 | AE12: 7 | AF12: 7 | AH12: 6 | AI12: 6
D13: 1 | G13: 1 | M13: 3 | P13: 2 | V13: 1 | Y13: 1 | AE13: 1 | AH13: 1
C14: 5 | D14: 2 | E14: 2 | F14: ÷ | G14: 3 | H14: 3 | I14: = | J14: 1.111111111 | K14: 10/9 | L14: 10 | M14: 2 | N14: 2 | O14: ÷ | P14: 5 | Q14: 5 | R14: = | S14: 0.48 | T14: 12/25 | U14: 15 | V14: 4 | W14: 4 | X14: – | Y14: 4 | Z14: 2 | AA14: = | AB14: 0.04444444444 | AC14: 2/45 | AD14: 20 | AE14: 4 | AF14: 2 | AG14: + | AH14: 2 | AI14: 1 | AJ14: = | AK14: 1.166666667 | AL14: 7/6
D15: 3 | E15: 3 | G15: 5 | H15: 5 | M15: 5 | N15: 5 | P15: 6 | Q15: 6 | V15: 9 | W15: 9 | Y15: 10 | Z15: 5 | AE15: 6 | AF15: 3 | AH15: 4 | AI15: 2

Sheet SYSTEM FORMULAE
A1: 1 | B1: =RANDBETWEEN(1,B2-1) -> 6 | C1: =B1/B3 -> 6 | D1: =CHOOSE(RANDBETWEEN(1,4),"+","–","×","÷") -> × | E1: =IF(D1="–",RANDBETWEEN(1,B1*E2/B2),RANDBETWEEN(1,E2-1)) -> 2 | F1: =E1/E3 -> 2 | G1: = | H1: =IF(D1="+",(C1/C2)+(F1/F2),IF(D1="–",(C1/C2)-(F1/F2),IF(D1="×",(C1/C2)*(F1/F2),(C1/C2)/(F1/F2)))) -> 0.1904761905 | I1: =IF(INT(H1)=H1,H1,TEXT(H1,"###/###")) -> 4/21 | J1: 6 | K1: =RANDBETWEEN(1,K2-1) -> 5 | L1: =K1/K3 -> 5 | M1: =CHOOSE(RANDBETWEEN(1,4),"+","–","×","÷") -> ÷ | N1: =IF(M1="–",RANDBETWEEN(1,K1*N2/K2),RANDBETWEEN(1,N2-1)) -> 1 | O1: =N1/N3 -> 1 | P1: = | Q1: =IF(M1="+",(L1/L2)+(O1/O2),IF(M1="–",(L1/L2)-(O1/O2),IF(M1="×",(L1/L2)*(O1/O2),(L1/L2)/(O1/O2)))) -> 7.142857143 | R1: =IF(INT(Q1)=Q1,Q1,TEXT(Q1,"###/###")) -> 50/7 | S1: 11 | T1: =RANDBETWEEN(1,T2-1) -> 4 | U1: =T1/T3 -> 4 | V1: =CHOOSE(RANDBETWEEN(1,4),"+","–","×","÷") -> + | W1: =IF(V1="–",RANDBETWEEN(1,T1*W2/T2),RANDBETWEEN(1,W2-1)) -> 4 | X1: =W1/W3 -> 4 | Y1: = | Z1: =IF(V1="+",(U1/U2)+(X1/X2),IF(V1="–",(U1/U2)-(X1/X2),IF(V1="×",(U1/U2)*(X1/X2),(U1/U2)/(X1/X2)))) -> 1.015873016 | AA1: =IF(INT(Z1)=Z1,Z1,TEXT(Z1,"###/###")) -> 64/63 | AB1: 16 | AC1: =RANDBETWEEN(1,AC2-1) -> 3 | AD1: =AC1/AC3 -> 3 | AE1: =CHOOSE(RANDBETWEEN(1,4),"+","–","×","÷") -> ÷ | AF1: =IF(AE1="–",RANDBETWEEN(1,AC1*AF2/AC2),RANDBETWEEN(1,AF2-1)) -> 5 | AG1: =AF1/AF3 -> 5 | AH1: = | AI1: =IF(AE1="+",(AD1/AD2)+(AG1/AG2),IF(AE1="–",(AD1/AD2)-(AG1/AG2),IF(AE1="×",(AD1/AD2)*(AG1/AG2),(AD1/AD2)/(AG1/AG2)))) -> 1.05 | AJ1: =IF(INT(AI1)=AI1,AI1,TEXT(AI1,"###/###")) -> 21/20
B2: =RANDBETWEEN(3,Worksheet!$B$5) -> 7 | C2: =B2/B3 -> 7 | E2: =IF(AND(D1="–",C1=1),RANDBETWEEN(C2,Worksheet!$B$5),RANDBETWEEN(3,Worksheet!$B$5)) -> 9 | F2: =E2/E3 -> 9 | K2: =RANDBETWEEN(3,Worksheet!$B$5) -> 7 | L2: =K2/K3 -> 7 | N2: =IF(AND(M1="–",L1=1),RANDBETWEEN(L2,Worksheet!$B$5),RANDBETWEEN(3,Worksheet!$B$5)) -> 10 | O2: =N2/N3 -> 10 | T2: =RANDBETWEEN(3,Worksheet!$B$5) -> 9 | U2: =T2/T3 -> 9 | W2: =IF(AND(V1="–",U1=1),RANDBETWEEN(U2,Worksheet!$B$5),RANDBETWEEN(3,Worksheet!$B$5)) -> 7 | X2: =W2/W3 -> 7 | AC2: =RANDBETWEEN(3,Worksheet!$B$5) -> 4 | AD2: =AC2/AC3 -> 4 | AF2: =IF(AND(AE1="–",AD1=1),RANDBETWEEN(AD2,Worksheet!$B$5),RANDBETWEEN(3,Worksheet!$B$5)) -> 7 | AG2: =AF2/AF3 -> 7
B3: =GCD(B1,B2) -> 1 | E3: =GCD(E1,E2) -> 1 | K3: =GCD(K1,K2) -> 1 | N3: =GCD(N1,N2) -> 1 | T3: =GCD(T1,T2) -> 1 | W3: =GCD(W1,W2) -> 1 | AC3: =GCD(AC1,AC2) -> 1 | AF3: =GCD(AF1,AF2) -> 1
A4: 2 | B4: =RANDBETWEEN(1,B5-1) -> 5 | C4: =B4/B6 -> 5 | D4: =CHOOSE(RANDBETWEEN(1,4),"+","–","×","÷") -> ÷ | E4: =IF(D4="–",RANDBETWEEN(1,B4*E5/B5),RANDBETWEEN(1,E5-1)) -> 3 | F4: =E4/E6 -> 3 | G4: = | H4: =IF(D4="+",(C4/C5)+(F4/F5),IF(D4="–",(C4/C5)-(F4/F5),IF(D4="×",(C4/C5)*(F4/F5),(C4/C5)/(F4/F5)))) -> 1.19047619 | I4: =IF(INT(H4)=H4,H4,TEXT(H4,"###/###")) -> 25/21 | J4: 7 | K4: =RANDBETWEEN(1,K5-1) -> 3 | L4: =K4/K6 -> 3 | M4: =CHOOSE(RANDBETWEEN(1,4),"+","–","×","÷") -> ÷ | N4: =IF(M4="–",RANDBETWEEN(1,K4*N5/K5),RANDBETWEEN(1,N5-1)) -> 2 | O4: =N4/N6 -> 2 | P4: = | Q4: =IF(M4="+",(L4/L5)+(O4/O5),IF(M4="–",(L4/L5)-(O4/O5),IF(M4="×",(L4/L5)*(O4/O5),(L4/L5)/(O4/O5)))) -> 2.625 | R4: =IF(INT(Q4)=Q4,Q4,TEXT(Q4,"###/###")) -> 21/8 | S4: 12 | T4: =RANDBETWEEN(1,T5-1) -> 2 | U4: =T4/T6 -> 2 | V4: =CHOOSE(RANDBETWEEN(1,4),"+","–","×","÷") -> – | W4: =IF(V4="–",RANDBETWEEN(1,T4*W5/T5),RANDBETWEEN(1,W5-1)) -> 1 | X4: =W4/W6 -> 1 | Y4: = | Z4: =IF(V4="+",(U4/U5)+(X4/X5),IF(V4="–",(U4/U5)-(X4/X5),IF(V4="×",(U4/U5)*(X4/X5),(U4/U5)/(X4/X5)))) -> 0.1746031746 | AA4: =IF(INT(Z4)=Z4,Z4,TEXT(Z4,"###/###")) -> 11/63 | AB4: 17 | AC4: =RANDBETWEEN(1,AC5-1) -> 1 | AD4: =AC4/AC6 -> 1 | AE4: =CHOOSE(RANDBETWEEN(1,4),"+","–","×","÷") -> ÷ | AF4: =IF(AE4="–",RANDBETWEEN(1,AC4*AF5/AC5),RANDBETWEEN(1,AF5-1)) -> 3 | AG4: =AF4/AF6 -> 3 | AH4: = | AI4: =IF(AE4="+",(AD4/AD5)+(AG4/AG5),IF(AE4="–",(AD4/AD5)-(AG4/AG5),IF(AE4="×",(AD4/AD5)*(AG4/AG5),(AD4/AD5)/(AG4/AG5)))) -> 0.380952381 | AJ4: =IF(INT(AI4)=AI4,AI4,TEXT(AI4,"###/###")) -> 8/21
B5: =RANDBETWEEN(3,Worksheet!$B$5) -> 7 | C5: =B5/B6 -> 7 | E5: =IF(AND(D4="–",C4=1),RANDBETWEEN(C5,Worksheet!$B$5),RANDBETWEEN(3,Worksheet!$B$5)) -> 5 | F5: =E5/E6 -> 5 | K5: =RANDBETWEEN(3,Worksheet!$B$5) -> 4 | L5: =K5/K6 -> 4 | N5: =IF(AND(M4="–",L4=1),RANDBETWEEN(L5,Worksheet!$B$5),RANDBETWEEN(3,Worksheet!$B$5)) -> 7 | O5: =N5/N6 -> 7 | T5: =RANDBETWEEN(3,Worksheet!$B$5) -> 7 | U5: =T5/T6 -> 7 | W5: =IF(AND(V4="–",U4=1),RANDBETWEEN(U5,Worksheet!$B$5),RANDBETWEEN(3,Worksheet!$B$5)) -> 9 | X5: =W5/W6 -> 9 | AC5: =RANDBETWEEN(3,Worksheet!$B$5) -> 7 | AD5: =AC5/AC6 -> 7 | AF5: =IF(AND(AE4="–",AD4=1),RANDBETWEEN(AD5,Worksheet!$B$5),RANDBETWEEN(3,Worksheet!$B$5)) -> 8 | AG5: =AF5/AF6 -> 8
B6: =GCD(B4,B5) -> 1 | E6: =GCD(E4,E5) -> 1 | K6: =GCD(K4,K5) -> 1 | N6: =GCD(N4,N5) -> 1 | T6: =GCD(T4,T5) -> 1 | W6: =GCD(W4,W5) -> 1 | AC6: =GCD(AC4,AC5) -> 1 | AF6: =GCD(AF4,AF5) -> 1
A7: 3 | B7: =RANDBETWEEN(1,B8-1) -> 2 | C7: =B7/B9 -> 2 | D7: =CHOOSE(RANDBETWEEN(1,4),"+","–","×","÷") -> – | E7: =IF(D7="–",RANDBETWEEN(1,B7*E8/B8),RANDBETWEEN(1,E8-1)) ->  | F7: =E7/E9 ->  | G7: = | H7: =IF(D7="+",(C7/C8)+(F7/F8),IF(D7="–",(C7/C8)-(F7/F8),IF(D7="×",(C7/C8)*(F7/F8),(C7/C8)/(F7/F8)))) ->  | I7: =IF(INT(H7)=H7,H7,TEXT(H7,"###/###")) ->  | J7: 8 | K7: =RANDBETWEEN(1,K8-1) -> 4 | L7: =K7/K9 -> 4 | M7: =CHOOSE(RANDBETWEEN(1,4),"+","–","×","÷") -> ÷ | N7: =IF(M7="–",RANDBETWEEN(1,K7*N8/K8),RANDBETWEEN(1,N8-1)) -> 1 | O7: =N7/N9 -> 1 | P7: = | Q7: =IF(M7="+",(L7/L8)+(O7/O8),IF(M7="–",(L7/L8)-(O7/O8),IF(M7="×",(L7/L8)*(O7/O8),(L7/L8)/(O7/O8)))) -> 3.555555556 | R7: =IF(INT(Q7)=Q7,Q7,TEXT(Q7,"###/###")) -> 32/9 | S7: 13 | T7: =RANDBETWEEN(1,T8-1) -> 8 | U7: =T7/T9 -> 8 | V7: =CHOOSE(RANDBETWEEN(1,4),"+","–","×","÷") -> ÷ | W7: =IF(V7="–",RANDBETWEEN(1,T7*W8/T8),RANDBETWEEN(1,W8-1)) -> 6 | X7: =W7/W9 -> 3 | Y7: = | Z7: =IF(V7="+",(U7/U8)+(X7/X8),IF(V7="–",(U7/U8)-(X7/X8),IF(V7="×",(U7/U8)*(X7/X8),(U7/U8)/(X7/X8)))) -> 1.481481481 | AA7: =IF(INT(Z7)=Z7,Z7,TEXT(Z7,"###/###")) -> 40/27 | AB7: 18 | AC7: =RANDBETWEEN(1,AC8-1) -> 2 | AD7: =AC7/AC9 -> 1 | AE7: =CHOOSE(RANDBETWEEN(1,4),"+","–","×","÷") -> + | AF7: =IF(AE7="–",RANDBETWEEN(1,AC7*AF8/AC8),RANDBETWEEN(1,AF8-1)) -> 3 | AG7: =AF7/AF9 -> 1 | AH7: = | AI7: =IF(AE7="+",(AD7/AD8)+(AG7/AG8),IF(AE7="–",(AD7/AD8)-(AG7/AG8),IF(AE7="×",(AD7/AD8)*(AG7/AG8),(AD7/AD8)/(AG7/AG8)))) -> 0.5833333333 | AJ7: =IF(INT(AI7)=AI7,AI7,TEXT(AI7,"###/###")) -> 7/12
B8: =RANDBETWEEN(3,Worksheet!$B$5) -> 7 | C8: =B8/B9 -> 7 | E8: =IF(AND(D7="–",C7=1),RANDBETWEEN(C8,Worksheet!$B$5),RANDBETWEEN(3,Worksheet!$B$5)) -> 3 | F8: =E8/E9 ->  | K8: =RANDBETWEEN(3,Worksheet!$B$5) -> 9 | L8: =K8/K9 -> 9 | N8: =IF(AND(M7="–",L7=1),RANDBETWEEN(L8,Worksheet!$B$5),RANDBETWEEN(3,Worksheet!$B$5)) -> 8 | O8: =N8/N9 -> 8 | T8: =RANDBETWEEN(3,Worksheet!$B$5) -> 9 | U8: =T8/T9 -> 9 | W8: =IF(AND(V7="–",U7=1),RANDBETWEEN(U8,Worksheet!$B$5),RANDBETWEEN(3,Worksheet!$B$5)) -> 10 | X8: =W8/W9 -> 5 | AC8: =RANDBETWEEN(3,Worksheet!$B$5) -> 8 | AD8: =AC8/AC9 -> 4 | AF8: =IF(AND(AE7="–",AD7=1),RANDBETWEEN(AD8,Worksheet!$B$5),RANDBETWEEN(3,Worksheet!$B$5)) -> 9 | AG8: =AF8/AF9 -> 3
B9: =GCD(B7,B8) -> 1 | E9: =GCD(E7,E8) ->  | K9: =GCD(K7,K8) -> 1 | N9: =GCD(N7,N8) -> 1 | T9: =GCD(T7,T8) -> 1 | W9: =GCD(W7,W8) -> 2 | AC9: =GCD(AC7,AC8) -> 2 | AF9: =GCD(AF7,AF8) -> 3
A10: 4 | B10: =RANDBETWEEN(1,B11-1) -> 5 | C10: =B10/B12 -> 5 | D10: =CHOOSE(RANDBETWEEN(1,4),"+","–","×","÷") -> – | E10: =IF(D10="–",RANDBETWEEN(1,B10*E11/B11),RANDBETWEEN(1,E11-1)) -> 3 | F10: =E10/E12 -> 3 | G10: = | H10: =IF(D10="+",(C10/C11)+(F10/F11),IF(D10="–",(C10/C11)-(F10/F11),IF(D10="×",(C10/C11)*(F10/F11),(C10/C11)/(F10/F11)))) -> 0.3392857143 | I10: =IF(INT(H10)=H10,H10,TEXT(H10,"###/###")) -> 19/56 | J10: 9 | K10: =RANDBETWEEN(1,K11-1) -> 1 | L10: =K10/K12 -> 1 | M10: =CHOOSE(RANDBETWEEN(1,4),"+","–","×","÷") -> – | N10: =IF(M10="–",RANDBETWEEN(1,K10*N11/K11),RANDBETWEEN(1,N11-1)) -> 1 | O10: =N10/N12 -> 1 | P10: = | Q10: =IF(M10="+",(L10/L11)+(O10/O11),IF(M10="–",(L10/L11)-(O10/O11),IF(M10="×",(L10/L11)*(O10/O11),(L10/L11)/(O10/O11)))) -> 0.1388888889 | R10: =IF(INT(Q10)=Q10,Q10,TEXT(Q10,"###/###")) -> 5/36 | S10: 14 | T10: =RANDBETWEEN(1,T11-1) -> 4 | U10: =T10/T12 -> 4 | V10: =CHOOSE(RANDBETWEEN(1,4),"+","–","×","÷") -> – | W10: =IF(V10="–",RANDBETWEEN(1,T10*W11/T11),RANDBETWEEN(1,W11-1)) -> 3 | X10: =W10/W12 -> 1 | Y10: = | Z10: =IF(V10="+",(U10/U11)+(X10/X11),IF(V10="–",(U10/U11)-(X10/X11),IF(V10="×",(U10/U11)*(X10/X11),(U10/U11)/(X10/X11)))) -> 0.2380952381 | AA10: =IF(INT(Z10)=Z10,Z10,TEXT(Z10,"###/###")) -> 5/21 | AB10: 19 | AC10: =RANDBETWEEN(1,AC11-1) -> 9 | AD10: =AC10/AC12 -> 9 | AE10: =CHOOSE(RANDBETWEEN(1,4),"+","–","×","÷") -> × | AF10: =IF(AE10="–",RANDBETWEEN(1,AC10*AF11/AC11),RANDBETWEEN(1,AF11-1)) -> 3 | AG10: =AF10/AF12 -> 3 | AH10: = | AI10: =IF(AE10="+",(AD10/AD11)+(AG10/AG11),IF(AE10="–",(AD10/AD11)-(AG10/AG11),IF(AE10="×",(AD10/AD11)*(AG10/AG11),(AD10/AD11)/(AG10/AG11)))) -> 0.54 | AJ10: =IF(INT(AI10)=AI10,AI10,TEXT(AI10,"###/###")) -> 27/50
B11: =RANDBETWEEN(3,Worksheet!$B$5) -> 7 | C11: =B11/B12 -> 7 | E11: =IF(AND(D10="–",C10=1),RANDBETWEEN(C11,Worksheet!$B$5),RANDBETWEEN(3,Worksheet!$B$5)) -> 8 | F11: =E11/E12 -> 8 | K11: =RANDBETWEEN(3,Worksheet!$B$5) -> 4 | L11: =K11/K12 -> 4 | N11: =IF(AND(M10="–",L10=1),RANDBETWEEN(L11,Worksheet!$B$5),RANDBETWEEN(3,Worksheet!$B$5)) -> 9 | O11: =N11/N12 -> 9 | T11: =RANDBETWEEN(3,Worksheet!$B$5) -> 7 | U11: =T11/T12 -> 7 | W11: =IF(AND(V10="–",U10=1),RANDBETWEEN(U11,Worksheet!$B$5),RANDBETWEEN(3,Worksheet!$B$5)) -> 9 | X11: =W11/W12 -> 3 | AC11: =RANDBETWEEN(3,Worksheet!$B$5) -> 10 | AD11: =AC11/AC12 -> 10 | AF11: =IF(AND(AE10="–",AD10=1),RANDBETWEEN(AD11,Worksheet!$B$5),RANDBETWEEN(3,Worksheet!$B$5)) -> 5 | AG11: =AF11/AF12 -> 5
B12: =GCD(B10,B11) -> 1 | E12: =GCD(E10,E11) -> 1 | K12: =GCD(K10,K11) -> 1 | N12: =GCD(N10,N11) -> 1 | T12: =GCD(T10,T11) -> 1 | W12: =GCD(W10,W11) -> 3 | AC12: =GCD(AC10,AC11) -> 1 | AF12: =GCD(AF10,AF11) -> 1
A13: 5 | B13: =RANDBETWEEN(1,B14-1) -> 3 | C13: =B13/B15 -> 3 | D13: =CHOOSE(RANDBETWEEN(1,4),"+","–","×","÷") -> – | E13: =IF(D13="–",RANDBETWEEN(1,B13*E14/B14),RANDBETWEEN(1,E14-1)) -> 2 | F13: =E13/E15 -> 2 | G13: = | H13: =IF(D13="+",(C13/C14)+(F13/F14),IF(D13="–",(C13/C14)-(F13/F14),IF(D13="×",(C13/C14)*(F13/F14),(C13/C14)/(F13/F14)))) -> 0.3777777778 | I13: =IF(INT(H13)=H13,H13,TEXT(H13,"###/###")) -> 17/45 | J13: 10 | K13: =RANDBETWEEN(1,K14-1) -> 3 | L13: =K13/K15 -> 3 | M13: =CHOOSE(RANDBETWEEN(1,4),"+","–","×","÷") -> – | N13: =IF(M13="–",RANDBETWEEN(1,K13*N14/K14),RANDBETWEEN(1,N14-1)) -> 1 | O13: =N13/N15 -> 1 | P13: = | Q13: =IF(M13="+",(L13/L14)+(O13/O14),IF(M13="–",(L13/L14)-(O13/O14),IF(M13="×",(L13/L14)*(O13/O14),(L13/L14)/(O13/O14)))) -> 0.4166666667 | R13: =IF(INT(Q13)=Q13,Q13,TEXT(Q13,"###/###")) -> 5/12 | S13: 15 | T13: =RANDBETWEEN(1,T14-1) -> 4 | U13: =T13/T15 -> 2 | V13: =CHOOSE(RANDBETWEEN(1,4),"+","–","×","÷") -> + | W13: =IF(V13="–",RANDBETWEEN(1,T13*W14/T14),RANDBETWEEN(1,W14-1)) -> 2 | X13: =W13/W15 -> 1 | Y13: = | Z13: =IF(V13="+",(U13/U14)+(X13/X14),IF(V13="–",(U13/U14)-(X13/X14),IF(V13="×",(U13/U14)*(X13/X14),(U13/U14)/(X13/X14)))) -> 1.166666667 | AA13: =IF(INT(Z13)=Z13,Z13,TEXT(Z13,"###/###")) -> 7/6 | AB13: 20 | AC13: =RANDBETWEEN(1,AC14-1) -> 2 | AD13: =AC13/AC15 -> 1 | AE13: =CHOOSE(RANDBETWEEN(1,4),"+","–","×","÷") -> – | AF13: =IF(AE13="–",RANDBETWEEN(1,AC13*AF14/AC14),RANDBETWEEN(1,AF14-1)) -> 1 | AG13: =AF13/AF15 -> 1 | AH13: = | AI13: =IF(AE13="+",(AD13/AD14)+(AG13/AG14),IF(AE13="–",(AD13/AD14)-(AG13/AG14),IF(AE13="×",(AD13/AD14)*(AG13/AG14),(AD13/AD14)/(AG13/AG14)))) -> 0.3333333333 | AJ13: =IF(INT(AI13)=AI13,AI13,TEXT(AI13,"###/###")) -> 1/3
B14: =RANDBETWEEN(3,Worksheet!$B$5) -> 5 | C14: =B14/B15 -> 5 | E14: =IF(AND(D13="–",C13=1),RANDBETWEEN(C14,Worksheet!$B$5),RANDBETWEEN(3,Worksheet!$B$5)) -> 9 | F14: =E14/E15 -> 9 | K14: =RANDBETWEEN(3,Worksheet!$B$5) -> 4 | L14: =K14/K15 -> 4 | N14: =IF(AND(M13="–",L13=1),RANDBETWEEN(L14,Worksheet!$B$5),RANDBETWEEN(3,Worksheet!$B$5)) -> 3 | O14: =N14/N15 -> 3 | T14: =RANDBETWEEN(3,Worksheet!$B$5) -> 6 | U14: =T14/T15 -> 3 | W14: =IF(AND(V13="–",U13=1),RANDBETWEEN(U14,Worksheet!$B$5),RANDBETWEEN(3,Worksheet!$B$5)) -> 4 | X14: =W14/W15 -> 2 | AC14: =RANDBETWEEN(3,Worksheet!$B$5) -> 4 | AD14: =AC14/AC15 -> 2 | AF14: =IF(AND(AE13="–",AD13=1),RANDBETWEEN(AD14,Worksheet!$B$5),RANDBETWEEN(3,Worksheet!$B$5)) -> 6 | AG14: =AF14/AF15 -> 6
B15: =GCD(B13,B14) -> 1 | E15: =GCD(E13,E14) -> 1 | K15: =GCD(K13,K14) -> 1 | N15: =GCD(N13,N14) -> 1 | T15: =GCD(T13,T14) -> 2 | W15: =GCD(W13,W14) -> 2 | AC15: =GCD(AC13,AC14) -> 2 | AF15: =GCD(AF13,AF14) -> 1
